bitfinex-derivatives/quotes_BTCF0:USTF0_20241210
["timestamp","ask_amount","ask_price","bid_price","bid_amount"]
[1733798800393,0.3608,97631.0,97625.0,1.54780071]
[1733798801095,0.3608,97631.0,97625.0,1.54880071]
[1733798801391,0.45264658,97631.0,97625.0,1.54880071]
[1733798801600,0.09184658,97630.0,97625.0,0.04880071]
[1733798802498,0.09184658,97629.0,97625.0,0.04880071]
[1733798802699,0.3608,97631.0,97625.0,0.04880071]
[1733798802700,0.09184658,97628.0,97625.0,0.04880071]
[1733798803297,0.09184658,97629.0,97625.0,0.04880071]
[1733798803494,0.3608,97631.0,97625.0,0.04880071]
[1733798809795,0.09184658,97647.0,97625.0,0.38371153]
[1733798809999,0.09184658,97651.0,97650.0,0.051175]
[1733798810197,0.09192262,97654.0,97651.0,0.043]
[1733798810401,0.4608,97700.0,97653.0,1.8608]
[1733798810698,0.0441,97699.0,97692.0,0.051152]
[1733798810892,0.0441,97699.0,97693.0,0.00320008]
[1733798811091,9.211e-05,97698.0,97696.0,0.05115]
[1733798811491,9.211e-05,97698.0,97697.0,0.00319843]
[1733798811798,9.211e-05,97698.0,97696.0,0.05115]
[1733798812000,9.211e-05,97698.0,97697.0,0.00319843]
[1733798812301,9.211e-05,97698.0,97696.0,0.05115]
[1733798812486,0.1,97700.0,97699.0,0.051149]
[1733798813096,0.1,97700.0,97695.0,0.3608]
[1733798813602,8.507e-05,97699.0,97696.0,0.00319841]
[1733798813790,8.507e-05,97699.0,97695.0,0.3608]
[1733798814191,8.507e-05,97699.0,97696.0,0.05115]
[1733798814596,8.507e-05,97699.0,97698.0,0.051149]
[1733798815402,8.507e-05,97699.0,97698.0,0.05434732]
[1733798815594,8.507e-05,97699.0,97698.0,0.051149]
[1733798820490,0.045,97714.0,97698.0,0.051149]
[1733798820691,0.3608,97733.0,97709.0,0.3608]
[1733798820895,0.3608,97733.0,97717.0,0.05114]
[1733798820896,0.0422,97727.0,97717.0,0.05114]
[1733798821094,0.0422,97727.0,97709.0,0.3608]
[1733798821095,0.0422,97727.0,97718.0,0.051139]
[1733798821301,0.0422,97727.0,97722.0,0.3608]
[1733798821498,0.0001312,97723.0,97722.0,0.411937]
[1733798822502,0.0001312,97723.0,97722.0,0.051137]
[1733798822696,0.0001312,97723.0,97722.0,0.06133085]
[1733798823906,0.0001312,97723.0,97722.0,0.0655282]
[1733798824300,0.0001312,97723.0,97722.0,0.06233085]
[1733798825005,0.0001312,97723.0,97722.0,0.06333085]
[1733798825505,0.0422,97727.0,97722.0,0.01219385]
[1733798825805,0.0422,97727.0,97725.0,0.051135]
[1733798826493,9.128e-05,97726.0,97725.0,0.051135]
[1733798827299,0.02729128,97727.0,97725.0,0.051135]
[1733798828000,0.01029128,97727.0,97725.0,0.051135]
[1733798828401,0.00010921,97726.0,97725.0,0.051135]
[1733798829396,0.00010921,97726.0,97722.0,0.01019385]
[1733798829598,0.00010921,97726.0,97717.0,0.3608]
[1733798829801,0.00010921,97726.0,97716.0,0.05114]
[1733798830001,0.3608,97717.0,97716.0,0.05114]
[1733798830205,0.3608,97754.0,97745.0,0.051125]
[1733798830505,0.3608,97754.0,97746.0,0.3608]
[1733798830707,0.051118,97758.0,97746.0,0.3608]
[1733798830708,0.0435,97757.0,97746.0,0.3608]
[1733798831206,0.00161358,97747.0,97746.0,0.3608]
[1733798833205,0.00161358,97747.0,97746.0,0.37121797]
[1733798833710,0.00161358,97747.0,97746.0,0.3608]
[1733798836800,0.00161358,97747.0,97746.0,1.8608]
[1733798837815,0.00161358,97747.0,97746.0,0.3608]
[1733798839215,0.051128,97739.0,97738.0,0.00056]
[1733798839512,0.3608,97743.0,97735.0,0.3608]
[1733798839710,0.3608,97743.0,97739.0,0.051128]
[1733798840319,0.05113,97737.0,97735.0,0.3608]
[1733798840617,0.05113,97737.0,97735.0,0.13015077]
[1733798840810,0.051137,97722.0,97721.0,0.00056]
[1733798841005,0.051134,97729.0,97722.0,0.051137]
[1733798841327,0.051135,97726.0,97722.0,0.051137]
[1733798841513,0.3608,97741.0,97718.0,0.3608]
[1733798841717,0.05113,97736.0,97730.0,0.10120582]
[1733798842011,0.051126,97743.0,97735.0,0.05113]
[1733798842313,0.0407,97746.0,97742.0,0.051126]
[1733798842515,0.0805,97746.0,97742.0,0.051126]
[1733798842715,0.051126,97744.0,97735.0,0.3608]
[1733798843117,0.051126,97744.0,97736.0,0.05113]
[1733798843311,0.051126,97744.0,97739.0,0.051128]
[1733798844016,0.0805,97746.0,97735.0,0.3608]
[1733798844317,0.0805,97746.0,97736.0,0.43294907]
[1733798844513,0.0805,97746.0,97737.0,0.33174325]
[1733798844714,0.0805,97746.0,97736.0,0.10120582]
[1733798845021,0.0805,97746.0,97737.0,0.33203375]
[1733798845223,0.0805,97746.0,97737.0,0.051129]
[1733798845517,0.0805,97746.0,97743.0,0.051126]
[1733798846917,0.131625,97746.0,97743.0,0.051126]
[1733798847921,0.0805,97746.0,97736.0,0.051129]
[1733798848721,0.131624,97746.0,97745.0,0.18358906]
[1733798849023,0.131624,97746.0,97735.0,0.01023935]
[1733798849024,0.131624,97746.0,97744.0,0.18358906]
[1733798849522,0.0805,97746.0,97737.0,0.051129]
[1733798849722,0.3608,97741.0,97737.0,0.051129]
[1733798850926,0.411927,97741.0,97737.0,0.051129]
[1733798851114,0.051127,97741.0,97737.0,0.051129]
[1733798851916,0.411927,97741.0,97737.0,0.051129]
[1733798852328,0.051128,97740.0,97737.0,0.051129]
[1733798853322,0.051136,97725.0,97722.0,0.051137]
[1733798853919,0.37091095,97741.0,97717.0,1.5]
[1733798853920,0.051131,97733.0,97717.0,1.5]
[1733798854216,0.051131,97733.0,97732.0,0.18376072]
[1733798855029,0.051131,97733.0,97731.0,0.18376072]
[1733798855420,0.051131,97733.0,97730.0,0.18376072]
[1733798855627,0.051131,97733.0,97729.0,0.051133]
[1733798855830,0.3608,97741.0,97727.0,0.01032476]
[1733798856128,0.3608,97741.0,97725.0,0.3608]
[1733798856129,0.051128,97739.0,97737.0,0.051129]
[1733798857921,0.051128,97739.0,97725.0,0.73677544]
[1733798858127,0.00153509,97745.0,97726.0,0.3816421]
[1733798858128,0.051133,97731.0,97726.0,0.3816421]
[1733798858328,0.00153509,97745.0,97731.0,0.051132]
[1733798859628,0.051129,97737.0,97731.0,0.051132]
[1733798859922,0.05113,97736.0,97731.0,0.051132]
[1733798860620,0.05113,97736.0,97725.0,0.37091401]
[1733798860822,0.05113,97736.0,97733.0,0.051131]
[1733798862920,0.05113,97736.0,97709.0,0.051143]
[1733798862921,0.3608,97734.0,97701.0,0.36586143]
[1733798863118,0.051147,97704.0,97702.0,0.04569429]
[1733798863326,0.051147,97704.0,97703.0,0.04569429]
[1733798863624,0.3608,97710.0,97694.0,0.36586143]
[1733798863831,0.051151,97695.0,97689.0,0.0606]
[1733798864026,0.051153,97693.0,97684.0,0.0432]
[1733798864326,0.051153,97693.0,97684.0,0.05326429]
[1733798864826,0.15244497,97699.0,97684.0,0.0432]
[1733798865027,0.15244497,97699.0,97698.0,0.051149]
[1733798865227,0.36152,97710.0,97691.0,0.3608]
[1733798865528,0.3608,97710.0,97701.0,0.051148]
[1733798865721,0.153981,97715.0,97702.0,0.104]
[1733798865927,0.00153603,97715.0,97702.0,0.104]
[1733798868833,0.051142,97713.0,97702.0,0.104]
[1733798869031,0.051146,97705.0,97702.0,0.104]
[1733798869339,0.051147,97704.0,97699.0,0.3608]
[1733798869628,0.051148,97701.0,97699.0,0.3608]
[1733798870225,0.051152,97694.0,97692.0,0.1157]
[1733798870628,0.17344311,97694.0,97692.0,0.1157]
[1733798870825,0.051152,97694.0,97692.0,0.1157]
[1733798871031,0.17344311,97694.0,97692.0,0.1157]
[1733798871225,0.051152,97694.0,97692.0,0.1157]
[1733798871530,0.17339113,97694.0,97692.0,0.1157]
[1733798871831,0.051152,97694.0,97692.0,0.1157]
[1733798878334,0.00011111,97693.0,97684.0,0.0432]
[1733798878533,0.00011111,97693.0,97673.0,0.3608]
[1733798878534,0.411955,97688.0,97673.0,0.3608]
[1733798879029,0.534069,97688.0,97673.0,0.3608]
[1733798879233,0.411955,97688.0,97673.0,0.3608]
[1733798880541,0.53405106,97688.0,97673.0,0.3608]
[1733798880840,0.411955,97688.0,97673.0,0.3608]
[1733798881136,0.411955,97688.0,97671.0,0.0574]
[1733798882344,0.411955,97688.0,97673.0,0.00993962]
[1733798882634,0.00011111,97693.0,97680.0,0.3608]
[1733798882833,0.00011111,97693.0,97691.0,0.411953]
[1733798883033,0.00011111,97693.0,97692.0,1.6117]
[1733798883243,0.00011111,97693.0,97692.0,1.6709]
[1733798883631,0.00011111,97693.0,97692.0,0.1709]
[1733798884231,0.00011111,97693.0,97692.0,0.0548]
[1733798884934,0.051153,97692.0,97691.0,0.3608]
[1733798885129,0.051155,97688.0,97672.0,0.0556]
[1733798885325,0.051155,97688.0,97679.0,0.051159]
[1733798886534,0.051155,97688.0,97672.0,0.0556]
[1733798886535,0.3608,97688.0,97672.0,0.0556]
[1733798886726,0.051168,97664.0,97660.0,0.1146]
[1733798886931,0.051168,97664.0,97661.0,0.05879972]
[1733798887131,0.2233396,97670.0,97663.0,0.051167]
[1733798887132,0.10120582,97670.0,97663.0,0.051167]
[1733798887334,0.10120582,97670.0,97661.0,0.0556]
[1733798887638,0.051167,97665.0,97661.0,0.0556]
[1733798891139,0.3608,97664.0,97661.0,0.0556]
[1733798892133,0.051168,97663.0,97661.0,0.0556]
[1733798892735,0.1733963,97663.0,97661.0,0.0556]
[1733798892944,0.1222283,97662.0,97661.0,0.0556]
[1733798893234,0.1222283,97662.0,97645.0,0.051177]
[1733798893235,0.1222283,97662.0,97648.0,0.3608]
[1733798893438,0.051172,97655.0,97651.0,0.0578]
[1733798894133,0.3608,97654.0,97650.0,9.618e-05]
[1733798894327,0.051174,97651.0,97650.0,9.618e-05]
[1733798894534,0.1734023,97651.0,97650.0,9.618e-05]
[1733798894940,0.051174,97651.0,97650.0,9.618e-05]
[1733798895935,0.46188371,97651.0,97650.0,9.618e-05]
[1733798896740,0.47214027,97651.0,97650.0,9.618e-05]
[1733798897933,0.051185,97630.0,97629.0,0.1149]
[1733798898135,0.051188,97626.0,97613.0,0.3608]
[1733798898330,0.051188,97626.0,97616.0,0.01007112]
[1733798898732,0.12215938,97625.0,97613.0,0.3608]
[1733798898933,0.12215938,97625.0,97613.0,0.36088275]
[1733798899237,0.17334738,97626.0,97613.0,0.36088275]
[1733798899434,0.3608,97630.0,97613.0,0.36088275]
[1733798899435,0.05119,97621.0,97613.0,0.36088275]
[1733798899636,0.051193,97615.0,97613.0,0.36088275]
[1733798899943,0.051193,97615.0,97613.0,8.275e-05]
[1733798901235,0.3608,97615.0,97600.0,0.1]
[1733798901437,0.0512,97601.0,97600.0,0.1]
[1733798901835,0.15269259,97609.0,97600.0,0.1]
[1733798902032,0.12197263,97602.0,97600.0,0.1]
[1733798902237,0.12197263,97602.0,97601.0,0.1209]
[1733798902433,0.00010689,97602.0,97601.0,0.1209]
[1733798902932,0.05130689,97602.0,97600.0,0.1]
[1733798909131,0.051205,97593.0,97592.0,0.00559253]
[1733798911035,0.00010689,97602.0,97596.0,0.051203]
[1733798911257,0.00010689,97602.0,97597.0,0.1178]
[1733798911745,0.051201,97601.0,97598.0,1.5]
[1733798911933,0.00010689,97602.0,97597.0,0.1178]
[1733798911934,0.051202,97598.0,97597.0,0.1178]
[1733798912133,0.412002,97598.0,97597.0,0.1178]
[1733798912333,0.3608,97598.0,97583.0,0.051209]
[1733798912535,0.051205,97592.0,97584.0,0.1214]
[1733798912747,0.051205,97592.0,97584.0,0.13144165]
[1733798914247,0.3608,97598.0,97584.0,0.13144165]
[1733798914544,0.00010689,97602.0,97599.0,0.051201]
[1733798914746,0.12197263,97612.0,97601.0,0.412]
[1733798914941,0.3608,97618.0,97617.0,0.051192]
[1733798915352,0.00072,97628.0,97621.0,0.05119]
[1733798915647,0.3608,97639.0,97621.0,0.05119]
[1733798915648,0.051185,97632.0,97621.0,0.05119]
[1733798915844,0.00163328,97622.0,97621.0,0.05119]
[1733798916449,0.00163328,97622.0,97617.0,0.3608]
[1733798916846,0.00163328,97622.0,97621.0,0.05119]
[1733798920245,0.05282328,97622.0,97617.0,0.3608]
[1733798920442,0.051191,97618.0,97613.0,0.051194]
[1733798920958,0.00163328,97622.0,97619.0,0.051191]
[1733798921138,0.12177478,97621.0,97619.0,0.051191]
[1733798922142,0.00163328,97622.0,97619.0,0.051191]
[1733798923347,0.04979056,97621.0,97619.0,0.051191]
[1733798924246,0.04979056,97621.0,97610.0,0.05801085]
[1733798924441,0.15282882,97613.0,97610.0,0.06840549]
[1733798924844,0.15282882,97613.0,97611.0,0.051195]
[1733798925046,0.15282882,97615.0,97614.0,0.051194]
[1733798925249,0.15288691,97616.0,97614.0,0.051194]
[1733798925455,0.15288691,97619.0,97618.0,0.051191]
[1733798925647,0.00163328,97622.0,97612.0,0.3608]
[1733798925845,0.15287773,97618.0,97617.0,0.051192]
[1733798926853,0.15287773,97618.0,97613.0,0.00052]
[1733798927053,0.051194,97614.0,97612.0,0.3608]
[1733798927245,0.051194,97614.0,97600.0,0.06]
[1733798927246,0.04978709,97613.0,97600.0,0.1112]
[1733798927447,0.3608,97621.0,97600.0,0.1112]
[1733798927448,0.0512,97603.0,97600.0,0.1112]
[1733798927648,0.04978709,97602.0,97600.0,0.1112]
[1733798927848,0.04978709,97602.0,97600.0,0.0512]
[1733798928754,0.18357742,97602.0,97600.0,0.0512]
[1733798929960,0.04978709,97601.0,97600.0,0.0512]
[1733798930258,0.15299354,97605.0,97600.0,0.0512]
[1733798930552,0.15299354,97606.0,97600.0,0.0512]
[1733798930963,0.15299354,97605.0,97600.0,0.0512]
[1733798931460,0.051197,97608.0,97600.0,0.0512]
[1733798931461,0.15299354,97606.0,97600.0,0.0512]
[1733798931654,0.15299354,97605.0,97600.0,0.0512]
[1733798932058,0.15299354,97606.0,97597.0,0.3608]
[1733798932367,0.1529942,97604.0,97603.0,0.051199]
[1733798932655,0.0102113,97620.0,97604.0,0.051199]
[1733798932656,0.12239011,97606.0,97604.0,0.051199]
[1733798932860,0.12239011,97606.0,97605.0,1.5]
[1733798933052,0.2041872,97615.0,97605.0,1.5]
[1733798933053,0.12239011,97609.0,97605.0,1.8608]
[1733798933248,0.12239011,97609.0,97608.0,0.051197]
[1733798935150,0.051195,97612.0,97608.0,0.051197]
[1733798935661,0.051196,97609.0,97608.0,0.051197]
[1733798937664,0.051196,97609.0,97597.0,0.3608]
[1733798937865,0.1224494,97604.0,97603.0,0.051199]
[1733798938259,0.12247022,97604.0,97603.0,0.051199]
[1733798938453,0.2041902,97609.0,97603.0,0.051199]
[1733798938659,0.051196,97609.0,97603.0,0.051199]
[1733798938873,0.2041902,97609.0,97603.0,0.051199]
[1733798939057,0.1529942,97608.0,97603.0,0.051199]
[1733798939263,0.2041902,97609.0,97603.0,0.051199]
[1733798939661,0.2041902,97609.0,97597.0,0.3608]
[1733798939862,0.12249088,97603.0,97598.0,0.01179217]
[1733798940056,0.12249088,97602.0,97598.0,0.01179217]
[1733798940262,0.09187348,97601.0,97598.0,0.01179217]
[1733798940563,0.09187348,97603.0,97600.0,0.3608]
[1733798940761,0.09187348,97603.0,97601.0,0.0512]
[1733798940974,0.09187348,97602.0,97601.0,0.0512]
[1733798941157,0.09187348,97602.0,97601.0,1.5]
[1733798941158,0.09188116,97602.0,97601.0,1.5]
[1733798941465,0.12249088,97607.0,97606.0,0.051198]
[1733798941765,0.12249088,97608.0,97606.0,0.051198]
[1733798941964,0.12249088,97607.0,97606.0,0.051198]
[1733798942159,0.12249088,97607.0,97601.0,1.5]
[1733798942160,0.12249088,97608.0,97602.0,0.0512]
[1733798942361,0.12249088,97608.0,97607.0,0.051197]
[1733798943661,0.1529942,97615.0,97610.0,0.051195]
[1733798944255,0.051193,97616.0,97610.0,0.051195]
[1733798944256,0.1529942,97614.0,97610.0,0.051195]
[1733798944658,0.1529942,97613.0,97610.0,0.051195]
[1733798944859,0.2041892,97612.0,97610.0,0.051195]
[1733798945271,0.1529942,97612.0,97601.0,1.5]
[1733798945460,0.051199,97604.0,97599.0,0.051201]
[1733798945769,0.1529942,97605.0,97604.0,0.051199]
[1733798945962,0.15332117,97606.0,97604.0,0.051199]
[1733798946459,0.15332117,97606.0,97598.0,0.3726209]
[1733798946460,0.051201,97601.0,97598.0,0.3726209]
[1733798946775,0.051201,97601.0,97598.0,0.0118209]
[1733798947363,0.051201,97601.0,97599.0,0.051201]
[1733798948564,0.051201,97599.0,97598.0,0.00153696]
[1733798948766,0.10100261,97599.0,97598.0,0.00153696]
[1733798950572,0.23516908,97599.0,97598.0,0.00153696]
[1733798950869,0.051205,97592.0,97586.0,0.051208]
[1733798951068,0.10101219,97592.0,97586.0,0.051208]
[1733798951464,0.10101219,97592.0,97576.0,1.5]
[1733798951465,0.10101215,97592.0,97578.0,0.412012]
[1733798951659,0.1010121,97592.0,97578.0,0.412012]
[1733798951859,0.1010121,97592.0,97578.0,0.3608]
[1733798952064,0.1010121,97592.0,97579.0,0.051212]
[1733798952263,0.1010121,97592.0,97580.0,0.01037366]
[1733798952659,0.1010121,97592.0,97580.0,0.06158466]
[1733798952858,0.1010121,97592.0,97590.0,0.051206]
[1733798953064,0.0498071,97592.0,97590.0,0.051206]
[1733798953260,0.0498071,97592.0,97590.0,0.05119899]
[1733798953973,0.15322753,97597.0,97591.0,0.0032021]
[1733798954165,0.15322753,97597.0,97595.0,0.051203]
[1733798954370,0.15322753,97597.0,97592.0,0.0622021]
[1733798954371,0.12256977,97599.0,97596.0,0.36400194]
[1733798954668,0.12256977,97603.0,97602.0,0.0512]
[1733798954867,0.12256977,97603.0,97602.0,0.05440194]
[1733798955062,0.12255438,97606.0,97605.0,0.051198]
[1733798955268,0.12255438,97607.0,97605.0,0.41519941]
[1733798955464,0.12255438,97607.0,97606.0,0.00320141]
[1733798956164,0.051192,97617.0,97607.0,0.051197]
[1733798956370,0.051192,97617.0,97611.0,0.051195]
[1733798956565,0.15322753,97618.0,97612.0,0.00320141]
[1733798956766,0.11132655,97620.0,97613.0,0.00320141]
[1733798956767,0.051194,97614.0,97613.0,0.00320141]
[1733798956975,0.049794,97614.0,97605.0,0.3608]
[1733798957179,0.20444677,97607.0,97606.0,0.00320163]
[1733798957367,0.10099488,97607.0,97606.0,0.00320163]
[1733798959179,0.04979788,97607.0,97599.0,0.06128499]
[1733798959370,0.15326401,97603.0,97600.0,0.00320184]
[1733798959571,0.15326401,97604.0,97601.0,0.00320184]
[1733798959869,0.15326401,97603.0,97602.0,0.00320184]
[1733798960063,0.20446301,97603.0,97602.0,0.00320184]
[1733798960269,0.051199,97603.0,97602.0,0.00320184]
[1733798960470,0.10099971,97603.0,97602.0,0.00320184]
[1733798960675,0.15326854,97603.0,97602.0,0.05440184]
[1733798960870,0.15326854,97605.0,97602.0,0.00320184]
[1733798961173,0.15326854,97606.0,97604.0,0.051199]
[1733798961389,0.15326854,97607.0,97606.0,0.051198]
[1733798961774,0.15326854,97607.0,97606.0,0.05439967]
[1733798962470,0.15326854,97608.0,97606.0,0.05439967]
[1733798962673,0.15326854,97607.0,97606.0,0.051198]
[1733798962876,0.15325934,97608.0,97606.0,0.051198]
[1733798963476,0.04979725,97607.0,97606.0,0.051198]
[1733798963780,0.04979725,97611.0,97606.0,0.051198]
[1733798963969,0.1532704,97608.0,97606.0,0.051198]
[1733798964773,0.0497974,97607.0,97606.0,0.051198]
[1733798965471,0.15327796,97608.0,97606.0,0.051198]
[1733798965870,0.04979827,97607.0,97599.0,0.051201]
[1733798966071,0.20448461,97602.0,97599.0,0.051201]
[1733798966280,0.15328461,97601.0,97599.0,0.051201]
[1733798966671,0.20448461,97602.0,97599.0,0.051201]
[1733798966983,0.0512,97602.0,97599.0,0.051201]
[1733798967381,0.20448461,97602.0,97599.0,0.051201]
[1733798967977,0.051205,97593.0,97587.0,8.464e-05]
[1733798968177,0.23376973,97601.0,97588.0,0.00320208]
[1733798968178,0.051206,97590.0,97588.0,0.00320208]
[1733798968479,0.051206,97590.0,97587.0,8.464e-05]
[1733798968480,0.051207,97588.0,97587.0,8.464e-05]
[1733798968979,0.10101547,97588.0,97587.0,8.464e-05]
[1733798970379,0.051217,97569.0,97560.0,0.3608]
[1733798970578,0.051217,97569.0,97568.0,0.00474032]
[1733798970784,0.051217,97569.0,97568.0,0.00153743]
[1733798970983,0.051221,97561.0,97560.0,0.3608]
[1733798971289,0.10103606,97569.0,97551.0,0.051226]
[1733798971290,0.051224,97556.0,97551.0,0.051226]
[1733798971484,0.09188999,97552.0,97551.0,0.051226]
[1733798971790,0.12262076,97554.0,97551.0,0.05442939]
[1733798971983,0.05129909,97555.0,97549.0,0.3608]
[1733798971984,0.12262076,97553.0,97549.0,0.3608]
[1733798972179,0.051227,97551.0,97542.0,0.110131]
[1733798972379,0.12262076,97549.0,97543.0,0.00320368]
[1733798972587,0.0918999,97549.0,97544.0,0.00320368]
[1733798972785,0.0918999,97548.0,97542.0,0.110131]
[1733798972983,0.0918999,97548.0,97543.0,0.00320372]
[1733798973183,0.0918999,97550.0,97542.0,0.110131]
[1733798973383,0.051227,97551.0,97543.0,0.00320362]
[1733798973584,7.409e-05,97555.0,97545.0,0.3608]
[1733798973780,7.409e-05,97555.0,97554.0,0.051225]
[1733798973988,7.409e-05,97555.0,97554.0,0.05442828]
[1733798974495,7.409e-05,97555.0,97554.0,0.0544282]
[1733798974685,7.409e-05,97555.0,97554.0,0.1139282]
[1733798974990,7.409e-05,97555.0,97554.0,1.6139282]
[1733798975583,7.409e-05,97555.0,97554.0,1.6239147]
[1733798977909,0.0918999,97575.0,97572.0,0.051216]
[1733798978108,0.0918999,97575.0,97573.0,0.051215]
[1733798978406,0.0918999,97578.0,97573.0,0.051215]
[1733798978799,0.00010678,97577.0,97573.0,0.051215]
[1733798979402,0.00010678,97577.0,97569.0,0.0614]
[1733798979601,0.00010678,97577.0,97575.0,0.051214]
[1733798979808,0.00010678,97577.0,97576.0,0.3608]
[1733798984704,0.00010678,97577.0,97576.0,0.37100834]
[1733798986013,0.00010678,97577.0,97568.0,0.3608]
[1733798986213,0.00010678,97577.0,97556.0,0.36233757]
[1733798986214,0.051218,97568.0,97563.0,0.05122]
[1733798986816,0.0918999,97570.0,97565.0,0.051219]
[1733798987006,0.0918999,97572.0,97570.0,0.051216]
[1733798987206,0.0918999,97575.0,97571.0,0.051216]
[1733798987915,0.0918999,97575.0,97572.0,0.051215]
[1733798988420,0.0918999,97574.0,97572.0,0.051215]
[1733798988613,0.1431139,97576.0,97572.0,0.051215]
[1733798990111,0.0918999,97575.0,97572.0,0.051215]
[1733798990413,0.01042786,97577.0,97574.0,0.3608]
[1733798990913,0.12234198,97575.0,97574.0,0.412014]
[1733798992404,0.00010678,97577.0,97574.0,0.412014]
[1733798992609,0.00010678,97577.0,97575.0,0.051213]
[1733798992829,0.00010678,97577.0,97574.0,0.3608]
[1733798993311,0.00010678,97577.0,97572.0,0.01037072]
[1733798993312,0.15327595,97575.0,97572.0,0.01037072]
[1733798993517,0.20422997,97573.0,97572.0,0.01037072]
[1733798993702,0.10103191,97573.0,97566.0,0.051218]
[1733798993904,0.15305911,97572.0,97566.0,0.051218]
[1733798994215,0.15305911,97572.0,97567.0,0.00320297]
[1733798994412,0.051215,97573.0,97566.0,0.051218]
[1733798994413,0.15305911,97570.0,97566.0,0.051218]
[1733798994613,0.15305911,97570.0,97567.0,0.00320297]
[1733798994804,0.15305911,97570.0,97566.0,0.051218]
[1733798995007,0.15305911,97572.0,97567.0,0.00320297]
[1733798995211,0.10120582,97576.0,97568.0,0.00320297]
[1733798995212,0.15305911,97571.0,97568.0,0.00320297]
[1733798995408,0.04981765,97570.0,97566.0,0.051218]
[1733798995712,0.15317614,97568.0,97567.0,0.00320299]
[1733798996121,0.15317614,97569.0,97567.0,0.00320299]
[1733798996309,0.15317614,97569.0,97568.0,0.00320299]
[1733798996510,0.04981752,97569.0,97568.0,0.00320299]
[1733798998220,0.04981752,97569.0,97560.0,0.051222]
[1733798998221,0.051221,97563.0,97560.0,0.051222]
[1733798998411,0.051221,97562.0,97561.0,0.003203]
[1733799002321,0.20454108,97562.0,97561.0,0.003203]
[1733799002622,0.20461554,97562.0,97561.0,0.003203]
[1733799002915,0.15339454,97565.0,97564.0,0.05122]
[1733799003111,0.15339454,97565.0,97564.0,0.054423]
[1733799003310,0.15339454,97567.0,97564.0,0.415223]
[1733799003517,0.15339454,97565.0,97564.0,0.41202]
[1733799003718,0.15339454,97566.0,97564.0,0.41522297]
[1733799003927,0.15339454,97566.0,97564.0,0.41202]
[1733799004812,0.15339454,97565.0,97564.0,0.41202]
[1733799005010,0.15339454,97566.0,97564.0,0.41202]
[1733799005612,0.15344413,97565.0,97564.0,0.41202]
[1733799005823,0.15344413,97569.0,97568.0,0.051218]
[1733799006014,0.15344413,97572.0,97570.0,0.051217]
[1733799006216,0.15344413,97573.0,97570.0,0.3608]
[1733799006418,0.15344413,97573.0,97572.0,0.051216]
[1733799006819,0.051216,97572.0,97570.0,0.3608]
[1733799007212,0.051216,97572.0,97565.0,0.05442197]
[1733799007213,0.21674326,97576.0,97561.0,0.24275254]
[1733799007419,0.3608,97562.0,97527.0,0.30443696]
[1733799007713,0.051242,97523.0,97513.0,0.35568296]
[1733799007915,0.0920915,97520.0,97514.0,0.06394486]
[1733799008121,0.0920915,97518.0,97515.0,0.06394486]
[1733799008319,0.15346837,97519.0,97505.0,0.051251]
[1733799008525,0.12274613,97507.0,97502.0,0.3608]
[1733799008713,0.12274613,97503.0,97502.0,0.3608]
[1733799008913,0.051252,97504.0,97500.0,0.10291299]
[1733799009127,0.15346837,97503.0,97500.0,0.10291299]
[1733799009420,0.12253177,97505.0,97500.0,0.10291299]
[1733799009621,0.12253177,97505.0,97503.0,0.051252]
[1733799009822,0.12253177,97510.0,97506.0,0.05125]
[1733799010019,0.12253177,97512.0,97507.0,0.05125]
[1733799010412,0.0917998,97508.0,97507.0,0.05125]
[1733799010923,0.17377877,97512.0,97507.0,0.05125]
[1733799011125,0.051248,97510.0,97500.0,0.10291299]
[1733799011322,0.09180166,97507.0,97503.0,0.051251]
[1733799011518,0.09180166,97507.0,97504.0,0.051251]
[1733799011719,0.09180166,97507.0,97500.0,0.10291299]
[1733799011720,0.09180166,97507.0,97505.0,0.05125]
[1733799012125,0.09180166,97508.0,97500.0,0.10291299]
[1733799012321,0.48333177,97514.0,97507.0,0.05125]
[1733799012322,0.09180166,97509.0,97507.0,0.05125]
[1733799013320,0.09180166,97511.0,97507.0,0.05125]
[1733799013824,0.09180166,97510.0,97507.0,0.05125]
[1733799014228,0.3608,97514.0,97508.0,1.5]
[1733799014229,0.09180166,97511.0,97508.0,1.5]
[1733799014427,0.3608,97511.0,97500.0,0.10137451]
[1733799014726,0.412053,97501.0,97500.0,0.02870851]
[1733799016322,0.051257,97493.0,97483.0,1.5]
[1733799016522,0.15246282,97493.0,97484.0,0.051262]
[1733799016730,0.3608,97501.0,97488.0,0.05126]
[1733799016731,0.09148039,97499.0,97488.0,0.05126]
[1733799016930,0.09148039,97499.0,97483.0,1.50056]
[1733799016931,0.09148039,97509.0,97497.0,0.051255]
[1733799017122,0.36156,97511.0,97505.0,0.051251]
[1733799017320,0.3608,97511.0,97506.0,0.0607]
[1733799017930,0.3608,97511.0,97509.0,0.051249]
[1733799018524,0.00010193,97518.0,97511.0,0.051247]
[1733799018728,0.00010193,97518.0,97516.0,0.051245]
[1733799019237,0.00010193,97518.0,97517.0,0.00320425]
[1733799019731,0.00153893,97529.0,97517.0,0.00320425]
[1733799019928,0.00153893,97529.0,97515.0,0.3608]
[1733799019929,0.00153893,97529.0,97525.0,0.41204]
[1733799020635,0.09148039,97526.0,97518.0,0.00052]
[1733799020826,0.051248,97511.0,97506.0,0.0607]
[1733799021026,0.051249,97508.0,97506.0,0.0607]
[1733799021229,0.051253,97501.0,97499.0,8.922e-05]
[1733799021535,0.3608,97500.0,97499.0,8.922e-05]
[1733799022128,0.05126,97488.0,97478.0,0.3608]
[1733799022328,0.051261,97486.0,97478.0,0.3608]
[1733799022540,0.3608,97491.0,97474.0,0.051267]
[1733799022541,0.45223812,97491.0,97474.0,0.051267]
[1733799022739,0.051263,97481.0,97474.0,0.051267]
[1733799023430,0.051263,97481.0,97475.0,0.00320596]
[1733799023631,0.051263,97481.0,97476.0,0.00320596]
[1733799023926,0.051263,97481.0,97475.0,0.051266]
[1733799024135,0.051263,97481.0,97467.0,0.00012416]
[1733799024136,0.051265,97477.0,97476.0,0.00320588]
[1733799024329,0.051269,97471.0,97467.0,0.00012416]
[1733799025535,8.001e-05,97470.0,97467.0,0.00012416]